[Event "FRA-ch Teams Top 16-B 2022"]
[Site "Chartres"]
[Date "2022.06.11"]
[Round "3.1"]
[White "Le Hetet, Nicolas"]
[Black "Esipenko, Andrey"]
[Result "1-0"]
[ECO "B91"]
[WhiteElo "2372"]
[BlackElo "2709"]
[Annotator "TA"]
[PlyCount "77"]
[EventDate "2022.06.09"]
[EventType "team-tourn"]
[EventCountry "FRA"]
[SourceTitle "playchess.com"]
[Source "ChessBase"]
[SourceQuality "1"]
[TimeControl "40/5400+30:1800+30"]

{[%evp 19,77,-13,-9,-19,20,13,18,0,13,7,18,0,11,0,0,0,0,0,0,0,0,-78,25,13,25,27,16,16,27,23,19,22,18,-33,141,121,367,369,440,429,974,968,967,966,1044,568,2227,2166,29986,29987,29988,29989,29989,29990,29990,29991,29989,29990,29998,29999]} 1. e4 {[%emt 0:00:02]} c5 {[%emt 0:00:17]} 2. Nf3 {[%emt 0:00:16]} d6 {[%emt 0:00:10]} 3. d4 {[%emt 0:00:12]} cxd4 {[%emt 0:00:08]} 4. Nxd4 {[%emt 0:00:34]} Nf6 {[%emt 0:00:08]} 5. Nc3 {[%emt 0:00:03]} a6 {[%emt 0:00:11]} 6. g3 {[%emt 0:00:39]} e5 {[%emt 0:00:24]} 7. Nde2 {[%emt 0:00:06]} Be7 {[%emt 0:01:39]} 8. Bg2 {[%emt 0:00:36]} b5 {[%emt 0:00:20]} 9. O-O {[%emt 0:01:06]} Nbd7 {[%emt 0:00:20]} 10. h3 {[%emt 0:03:03]} O-O {[%emt 0:02:41]} 11. a3 {[%emt 0:08:53] B91: Sicilian Najdorf: 6 g3.} h5 {[%emt 0:07:25]} 12. Bg5 {[%emt 0:04:57]} Bb7 {[%emt 0:01:17]} 13. Nc1 {[%emt 0:12:57][%cal Be2c1,Bc1b3,Bb3a5][%mdl 32] The position is equal.} Rc8 {[%emt 0:03:05]} 14. Re1 {[%emt 0:10:32] [#]} Re8 $146 {[%emt 0:24:03]} ({Predecessor:} 14... Rc4 15. Nd3 g6 16. Qd2 Nc5 17. Bxf6 Bxf6 18. Nb4 Ne6 19. Rad1 Nd4 20. Qd3 Kg7 21. Ncd5 a5 22. c3 axb4 23. cxd4 Bxd5 24. dxe5 Bxe5 25. Qxd5 Rc5 26. Qb3 {½-½ (26) Mrdja,M (2241)-Zotova,A (2006) Novi Sad 2022}) 15. Nb3 {[%emt 0:06:12]} g6 {[%emt 0:07:04]} 16. Qd3 {[%emt 0:16:21]} Qc7 {[%emt 0:09:33]} 17. Rac1 {[%emt 0:08:28]} Nb6 {[%emt 0:05:22]} 18. Na5 {[%emt 0:02:59]} Ba8 {[%emt 0:01:05]} 19. Bd2 {[%emt 0:03:19]} Bf8 {[%emt 0:08:22]} 20. Nd5 {[%emt 0:04:31]} (20. Bg5 $11 {keeps the balance.}) 20... Nbxd5 {[%emt 0:07:41]} (20... Nfxd5 $1 $17 21. exd5 f5) 21. exd5 $11 {[%emt 0:00:19]} e4 {[%emt 0:00:36]} 22. Bxe4 {[%emt 0:03:34]} Nxe4 {[%emt 0:00:19]} 23. Rxe4 {[%emt 0:00:10]} Rxe4 {[%emt 0:00:48]} (23... Re5 {with more complications.} 24. c4 Qd7 25. b3 Qxh3 26. Rce1 Bg7) 24. Qxe4 {[%emt 0:00:07]} Bg7 {[%emt 0:00:17]} 25. c4 {[%emt 0:05:16] Hoping for cxb5.} Bxb2 {[%emt 0:05:31]} 26. Rb1 {[%emt 0:01:17] [#]} ({Better is} 26. Rc2 $1 $11 Bf6 27. Nc6) 26... Bxa3 $2 {[%emt 0:07:59] [#]} (26... bxc4 $1 $15 {stays ahead.} 27. Qxc4 (27. Rxb2 $2 c3 $17) (27. Nxc4 Qxc4) 27... Qxc4 28. Nxc4 Rxc4 29. Rxb2 Bxd5) 27. Bc3 $1 $16 {[%emt 0:04:25] 0x0.001b6851bb7bdp-1022s more active pieces.} b4 $2 {[%emt 0:02:12] [#] Loses the game.} (27... Rf8 $16) 28. Ba1 $1 $18 {[%emt 0:01:48][%cal Oe4d4] Strongly threatening Qd4!} Kh7 {[%emt 0:01:11]} (28... Qxa5 {gets mated.} 29. Qd4 f6 30. Qxf6) (28... b3 29. Bc3) 29. Qd4 {[%emt 0:01:19][%csl Ga1][%cal Rd4g7]} Rg8 {[%emt 0:00:56] [#] Inhibits Qg7+.} (29... f6 $142 30. Re1 (30. Qxf6 Re8 $18) 30... Rf8) 30. Re1 $1 {[%emt 0:00:44][%cal Bb1e1,Be1e8,Be8h8,Bh8h5][%mdl 32] Black must now prevent Re8!} Qd7 {[%emt 0:01:52] Prevents Re8.} (30... Qd8 31. Qa7) 31. g4 {[%emt 0:00:43]} Qd8 {[%emt 0:01:08] [#]} 32. Kh2 $1 {[%emt 0:00:31][%cal Od4a7] aiming for Qa7!} Qg5 {[%emt 0:00:36] [#]} (32... Qf8 33. Qf6) 33. Re8 $3 {[%emt 0:00:20][%cal Od4h8][%mdl 512] White wants to mate with Qh8+!} f6 {[%emt 0:00:56]} (33... Qe5+ 34. Rxe5) 34. Qa7+ {[%emt 0:00:21] White mates.} Rg7 {[%emt 0:01:18]} 35. Qxa8 {[%emt 0:00:30][%csl Ga8][%cal Re8h8]} Qf4+ {[%emt 0:00:05]} 36. Kg2 {[%emt 0:00:15][%csl Ga8][%cal Re8h8]} Kh6 {[%emt 0:00:05]} 37. Rh8+ {[%emt 0:01:02]} Kg5 {[%emt 0:00:01]} 38. Qe8 {[%emt 0:00:16]} b3 {[%emt 0:01:02] [#]} 39. Rxh5+ $1 {[%emt 0:00:09][%mdl 512] Weighted Error Value: White=0.21 (precise) /Black=0.53} 1-0

[Event "FRA-ch Teams Top 16-B 2022"]
[Site "Chartres"]
[Date "2022.06.11"]
[Round "3.2"]
[White "Moussard, Jules"]
[Black "Favarel, Julien"]
[Result "1-0"]
[ECO "C13"]
[WhiteElo "2651"]
[BlackElo "2312"]
[Annotator "TA"]
[PlyCount "61"]
[EventDate "2022.06.09"]
[EventType "team-tourn"]
[EventCountry "FRA"]
[SourceTitle "playchess.com"]
[Source "ChessBase"]
[SourceQuality "1"]
[TimeControl "40/5400+30:1800+30"]

{[%evp 15,61,21,35,0,0,0,0,0,0,0,20,7,17,0,4,0,39,3,8,-24,-23,-34,-19,-33,-33,-33,-34,-32,-30,-29,0,0,9,7,62,-12,251,232,316,329,360,337,325,314,680,672,716,714]} 1. e4 {[%emt 0:01:47]} e6 {[%emt 0:00:41]} 2. d4 {[%emt 0:00:18]} d5 {[%emt 0:00:07]} 3. Nc3 {[%emt 0:00:43]} Nf6 {[%emt 0:00:17]} 4. Bg5 {[%emt 0:02:46]} dxe4 {[%emt 0:00:40]} 5. Nxe4 {[%emt 0:00:12]} Be7 {[%emt 0:00:11]} 6. Nxf6+ {[%emt 0:00:08]} Bxf6 {[%emt 0:00:15]} 7. Bxf6 {[%emt 0:00:05]} Qxf6 {[%emt 0:00:14]} 8. Nf3 {[%emt 0:00:06]} c5 {[%emt 0:07:37]} 9. Bb5+ $1 {[%emt 0:09:05][%mdl 4] is recently more successful than 9.c3. C13: French: Classical System: 4 Bg5 Be7, Alekhine-Chatard Attack.} (9. dxc5 Qxb2 10. Rb1 Qc3+ 11. Qd2 Qxc5 $11) 9... Bd7 {[%emt 0:02:10]} 10. Qe2 {[%emt 0:04:22]} O-O {[%emt 0:04:07][%cal Bh8f8,Bf8c8,Bc8c7][%mdl 32]} 11. O-O-O {[%emt 0:03:14] The position is equal.} cxd4 {[%emt 0:11:07]} 12. Bxd7 {[%emt 0:06:25]} Nxd7 {[%emt 0:00:20][%cal Bb8d7,Bd7b6,Bb6d5][%mdl 32]} 13. Rxd4 {[%emt 0:00:36]} Nb6 {[%emt 0:15:01] [#]} 14. Qe4 $146 {[%emt 0:01:52]} ({Predecessor:} 14. Rhd1 Rfc8 15. Ne5 Nd5 16. g3 Rc7 17. Kb1 h6 18. c4 Qf5+ 19. Qe4 Qxe4+ 20. Rxe4 {½-½ (35) Nikac,P (2361)-Kosic,D (2488) Cetinje 2009}) 14... Rfc8 {[%emt 0:16:33]} 15. Kb1 {[%emt 0:02:21]} Nd5 {[%emt 0:02:16]} 16. h4 {[%emt 0:02:50]} (16. c4 $5 {[%cal Rc4d5]} Nc7 17. Rhd1 $14 (17. Qxb7 Nd5 $11)) 16... b5 {[%emt 0:12:23]} 17. Ng5 {[%emt 0:05:49]} g6 {[%emt 0:11:22]} 18. Nf3 {[%emt 0:04:23]} Rc7 {[%emt 0:04:27]} 19. Rhd1 {[%emt 0:06:31]} Rac8 {[%emt 0:01:06]} 20. R1d2 {[%emt 0:00:13]} a5 {[%emt 0:02:02]} 21. Ne5 {[%emt 0:00:45]} b4 {[%emt 0:01:03]} 22. g3 {[%emt 0:00:58]} a4 {[%emt 0:01:47]} 23. Ng4 {[%emt 0:03:28]} Qg7 {[%emt 0:00:45]} 24. Ne3 {[%emt 0:00:39]} b3 {[%emt 0:01:47]} ({Black should try} 24... Qf6 $1 $11) 25. c4 {[%emt 0:05:11] [#]} (25. axb3 $14 axb3 26. cxb3 (26. c4 Qf6 $15)) 25... bxa2+ $2 {[%emt 0:01:42][%mdl 8192] [#] This move loses the game for Black.} (25... Qf6 $1 $11 {and Black has nothing to worry.}) 26. Ka1 $1 $18 {[%emt 0:00:07][%cal Bb1a1,Ba1a2,Ba2b2][%mdl 32]} ({Inferior is} 26. Kxa2 Nb4+ 27. Kb1 Nc6 $11) 26... a3 {[%emt 0:00:57] aiming for ...axb2+.} 27. cxd5 {[%emt 0:02:20]} Rc1+ {[%emt 0:01:37]} 28. Kxa2 {[%emt 0:00:05]} axb2 {[%emt 0:00:50]} 29. Kxb2 {[%emt 0:00:59]} exd5 {[%emt 0:00:55]} (29... R1c5) 30. Nxd5 {[%emt 0:00:13]} Kh8 {[%emt 0:00:18] [#]} 31. Nc3 $1 {[%emt 0:01:18][%mdl 512] Weighted Error Value: White=0.13 (very precise) /Black=0.54} 1-0

[Event "FRA-ch Teams Top 16-B 2022"]
[Site "Chartres"]
[Date "2022.06.11"]
[Round "3.3"]
[White "Fantinel, Thibault"]
[Black "Gozzoli, Yannick"]
[Result "1/2-1/2"]
[ECO "B22"]
[WhiteElo "2388"]
[BlackElo "2591"]
[Annotator "TA"]
[PlyCount "60"]
[EventDate "2022.06.09"]
[EventType "team-tourn"]
[EventCountry "FRA"]
[SourceTitle "playchess.com"]
[Source "ChessBase"]
[SourceQuality "1"]
[TimeControl "40/5400+30:1800+30"]

{[%evp 18,60,49,0,8,10,13,7,6,15,16,11,9,4,14,4,12,13,17,16,20,8,9,0,0,0,0,0,108,102,100,100,94,106,89,76,86,77,90,91,92,97,83,86,81]} 1. e4 {[%emt 0:00:06]} c5 {[%emt 0:00:09]} 2. Nf3 {[%emt 0:00:45]} e6 {[%emt 0:00:16]} 3. c3 {[%emt 0:01:04]} d5 {[%emt 0:01:25]} 4. exd5 {[%emt 0:00:38]} Qxd5 {[%emt 0:01:50]} 5. d4 {[%emt 0:00:06]} Nf6 {[%emt 0:00:05]} 6. Na3 {[%emt 0:00:30]} Be7 {[%emt 0:19:02]} 7. Nb5 {[%emt 0:14:22]} Na6 {[%emt 0:00:54]} 8. Be2 {[%emt 0:02:50]} O-O {[%emt 0:00:56]} 9. O-O {[%emt 0:01:16]} cxd4 {[%emt 0:10:36]} 10. Qxd4 {[%emt 0:09:52]} Bd7 {[%emt 0:06:08] [#] B22: Sicilian: 2 c3.} 11. Rd1 $1 {[%emt 0:07:25][%cal Od4h4]} Bxb5 {[%emt 0:12:30]} 12. Qxd5 {[%emt 0:00:18][%mdl 64] Remove Defender} Nxd5 {[%emt 0:00:05] The position is equal.} 13. Bxb5 {[%emt 0:00:05]} Nc5 {[%emt 0:00:04]} 14. Bc4 {[%emt 0:15:44]} Nb6 {[%emt 0:01:25]} 15. Be2 {[%emt 0:00:18] [#]} Rfd8 $146 {[%emt 0:01:10]} ({Predecessor:} 15... Rac8 16. g3 Rfd8 17. Be3 f6 18. Kg2 Kf7 19. Rac1 Nd5 20. Bxc5 Bxc5 21. Rd3 Ke7 {½-½ (21) Valori,N (2415)-BuShamsa (2417) Playchess.com INT 2006}) 16. Be3 {[%emt 0:01:06]} Nd5 {[%emt 0:10:17]} 17. Bd4 {[%emt 0:01:08]} Rac8 {[%emt 0:00:49]} 18. g3 {[%emt 0:02:12]} a6 {[%emt 0:02:54]} 19. Ne1 {[%emt 0:11:39]} Na4 {[%emt 0:02:00]} 20. Rab1 {[%emt 0:03:58]} b5 {[%emt 0:03:34]} 21. Nc2 {[%emt 0:00:17]} Bf6 {[%emt 0:08:36]} 22. Bf3 {[%emt 0:03:21]} a5 {[%emt 0:05:23] [#]} (22... Kf8 $11) 23. Bxf6 $1 $16 {[%emt 0:03:07] White is better.} gxf6 {[%emt 0:04:03]} 24. Bxd5 {[%emt 0:02:10]} Rxd5 {[%emt 0:00:04]} 25. Rxd5 {[%emt 0:00:46]} exd5 {[%emt 0:00:04] KRN-KRN} 26. a3 {[%emt 0:01:45] Inhibits b4.} Kf8 {[%emt 0:01:01]} 27. Kf1 {[%emt 0:02:26]} Rb8 {[%emt 0:01:26]} 28. Ke2 {[%emt 0:01:25]} Ke7 {[%emt 0:01:12]} 29. Kd2 {[%emt 0:01:27]} Kd6 {[%emt 0:00:32]} 30. b3 {[%emt 0:07:26]} Nc5 {[%emt 0:00:24] Weighted Error Value: White=0.04 (flawless) /Black=0.13 (very precise)} 1/2-1/2

[Event "FRA-ch Teams Top 16-B 2022"]
[Site "Chartres"]
[Date "2022.06.11"]
[Round "3.4"]
[White "Movsesian, Sergei"]
[Black "Boukhris-Ferre, Yacine"]
[Result "1-0"]
[ECO "C63"]
[WhiteElo "2600"]
[BlackElo "2183"]
[Annotator "TA"]
[PlyCount "129"]
[EventDate "2022.06.09"]
[EventType "team-tourn"]
[EventCountry "FRA"]
[SourceTitle "playchess.com"]
[Source "ChessBase"]
[SourceQuality "1"]
[TimeControl "40/5400+30:1800+30"]

{[%evp 12,129,43,27,36,32,35,32,40,14,2,7,28,29,29,22,31,14,33,4,16,8,16,8,10,0,0,0,0,0,0,0,25,16,24,-14,16,16,16,18,18,0,0,0,0,0,0,0,0,0,17,0,0,0,0,0,33,0,0,0,0,0,0,0,0,0,0,0,0,-100,0,0,0,0,0,-22,0,0,0,0,0,14,43,37,90,71,155,154,170,174,287,251,490,474,446,327,551,558,579,572,566,559,555,306,556,552,877,821,877,861,920,883,2013,1965,1987,1857,1832,1687,1943,2070]} 1. e4 {[%emt 0:00:04]} e5 {[%emt 0:00:09]} 2. Nf3 {[%emt 0:00:05]} Nc6 {[%emt 0:00:03]} 3. Bb5 {[%emt 0:00:09]} f5 {[%emt 0:00:06]} 4. d3 {[%emt 0:00:54]} fxe4 {[%emt 0:00:06]} 5. dxe4 {[%emt 0:00:05]} Nf6 {[%emt 0:00:06]} 6. O-O {[%emt 0:00:55]} Bc5 {[%emt 0:02:28]} 7. Qd3 {[%emt 0:02:02]} Nd4 {[%emt 0:04:04] C63: Ruy Lopez: Schliemann/Jaenisch Defence.} 8. Nxd4 {[%emt 0:11:22]} Bxd4 {[%emt 0:00:30]} 9. Bc4 {[%emt 0:02:36]} d6 {[%emt 0:01:36] White is slightly better.} 10. c3 {[%emt 0:16:42]} Bb6 {[%emt 0:00:23]} 11. a4 {[%emt 0:00:18][%cal Ba2a4,Ba4a5][%mdl 32] Threatening a5.} a6 {[%emt 0:01:28]} 12. a5 {[%emt 0:01:20]} Ba7 {[%emt 0:00:06]} 13. Be3 {[%emt 0:11:19]} Bxe3 {[%emt 0:01:20]} 14. Qxe3 {[%emt 0:00:42]} Qe7 {[%emt 0:00:56] [#]} 15. Ra4 $146 {[%emt 0:01:18]} ({Predecessor:} 15. Nd2 Be6 16. Qe2 O-O 17. f3 Kh8 18. Bxe6 Qxe6 19. Qc4 Qe7 20. Rfe1 Nh5 21. b4 {½-½ (32) Kasimdzhanov,R (2700)-Salem,A (2581) Dubai 2014}) 15... Be6 {[%emt 0:18:24]} 16. Bxe6 {[%emt 0:01:12]} Qxe6 {[%emt 0:03:31]} 17. Rb4 {[%emt 0:00:31]} Rb8 {[%emt 0:05:42]} 18. Qa7 {[%emt 0:06:15]} Qc8 {[%emt 0:14:55]} 19. Nd2 {[%emt 0:07:28][%cal Bb1d2,Bd2f1,Bf1e3,Be3f5][%mdl 32]} O-O {[%emt 0:01:21]} 20. Qe3 {[%emt 0:00:26]} Nh5 {[%emt 0:01:47]} 21. f3 {[%emt 0:02:48]} Rf6 {[%emt 0:02:17]} 22. Rf2 {[%emt 0:03:10]} Nf4 {[%emt 0:01:39]} 23. Nf1 {[%emt 0:00:42]} Qe6 {[%emt 0:13:14]} 24. Rd2 {[%emt 0:03:05]} h5 {[%emt 0:06:41]} 25. Qa7 {[%emt 0:02:41][%csl LRb7,LRb8]} Qc8 {[%emt 0:08:40]} 26. Ne3 {[%emt 0:03:28]} Rf7 {[%emt 0:02:30] [#] Threatens to win with ...Rd7.} 27. Nf5 {[%emt 0:03:24]} Kh7 {[%emt 0:04:08]} 28. Qf2 {[%emt 0:00:35]} Qd8 {[%emt 0:00:49]} 29. Kh1 {[%emt 0:04:22]} g6 {[%emt 0:01:19]} 30. Ne3 {[%emt 0:00:31]} Qf6 {[%emt 0:01:04]} 31. h3 {[%emt 0:04:25]} Qg5 {[%emt 0:01:14]} 32. Kh2 {[%emt 0:01:47]} Ne6 {[%emt 0:01:34]} 33. Nd5 {[%emt 0:02:51]} Nf4 {[%emt 0:01:24]} 34. Ne3 {[%emt 0:03:19]} Ne6 {[%emt 0:00:21]} 35. Rd1 {[%emt 0:00:29]} Qf4+ {[%emt 0:00:12]} 36. Kh1 {[%emt 0:01:04]} Nc5 {[%emt 0:01:34][%cal Oc5e4]} 37. Nd5 {[%emt 0:01:28]} Qg5 {[%emt 0:00:43]} 38. Rc4 {[%emt 0:01:18]} Rbf8 {[%emt 0:00:21]} 39. h4 {[%emt 0:02:13]} Qd8 {[%emt 0:00:30]} 40. Kg1 {[%emt 0:00:25] [#]} (40. Qg3 $1 $11) 40... Ne6 {[%emt 0:00:32]} (40... Nb3 $1 $17) 41. Rb4 $11 {[%emt 0:05:41]} Nc5 {[%emt 0:04:44]} 42. Qg3 {[%emt 0:00:17] Inhibits g5.} Rg8 {[%emt 0:10:26]} 43. Kf1 {[%emt 0:03:09]} g5 {[%emt 0:05:18]} 44. hxg5 {[%emt 0:01:18]} Rxg5 {[%emt 0:00:41]} 45. Qh3 {[%emt 0:01:02]} h4 {[%emt 0:07:19]} 46. Qxh4+ {[%emt 0:05:09]} Kg6 {[%emt 0:00:01]} 47. Qf2 {[%emt 0:01:39]} Qh8 {[%emt 0:01:08]} ({Better is} 47... Rh5 $14) 48. Ne3 {[%emt 0:05:37] Black is on the road to losing.} Ne6 {[%emt 0:01:48]} (48... Rh7 $142) 49. Ke2 {[%emt 0:01:54]} ({Don't do} 49. Rxb7 Nf4 $16) 49... Nf4+ {[%emt 0:00:42]} 50. Kd2 {[%emt 0:00:05]} Qh2 {[%emt 0:00:38]} (50... Rh7 $142) 51. Rxb7 $18 {[%emt 0:01:59] aiming for Kc1.} Nh3 $2 {[%emt 0:02:33]} (51... Nxg2 {is a better defense.} 52. Nf5 Ne1 53. Qxh2 Nxf3+ 54. Kc1 Nxh2) 52. Qf1 {[%emt 0:01:05]} Nf4 {[%emt 0:00:05]} 53. Qh1 {[%emt 0:02:19]} Qxh1 {[%emt 0:00:44]} (53... Qg3 {keeps fighting.}) 54. Rxh1 {[%emt 0:00:04]} Nxg2 {[%emt 0:00:08]} 55. Nf5 {[%emt 0:00:15][%csl Gf5][%cal Rh1h6]} Kf6 {[%emt 0:00:56]} 56. Rh6+ {[%emt 0:00:55]} Rg6 {[%emt 0:00:01]} 57. Rxg6+ {[%emt 0:00:07]} Kxg6 {[%emt 0:00:01][%mdl 4096] Endgame KRN-KRN} 58. b4 {[%emt 0:00:29][%cal Bb2b4,Bb4b5][%mdl 32] White is clearly winning.} d5 {[%emt 0:00:52]} 59. b5 {[%emt 0:00:39]} dxe4 {[%emt 0:00:31]} 60. fxe4 {[%emt 0:00:24] Strongly threatening b6.} Rd7+ {[%emt 0:00:40]} 61. Kc1 {[%emt 0:00:13]} axb5 {[%emt 0:00:59]} 62. a6 {[%emt 0:00:07]} Rd8 {[%emt 0:00:40]} 63. a7 {[%emt 0:00:16] Black must now prevent Rb8.} Ra8 {[%emt 0:00:04]} 64. Ne7+ {[%emt 0:00:05]} Kf7 {[%emt 0:00:18]} 65. Nd5 {[%emt 0:00:13] Weighted Error Value: White=0.12 (very precise) /Black=0.25 (precise)} 1-0

[Event "FRA-ch Teams Top 16-B 2022"]
[Site "Chartres"]
[Date "2022.06.11"]
[Round "3.5"]
[White "Domenech, Vianney"]
[Black "Degraeve, Jean-Marc"]
[Result "0-1"]
[ECO "D00"]
[WhiteElo "2266"]
[BlackElo "2520"]
[Annotator "TA"]
[PlyCount "100"]
[EventDate "2022.06.09"]
[EventType "team-tourn"]
[EventCountry "FRA"]
[SourceTitle "playchess.com"]
[Source "ChessBase"]
[SourceQuality "1"]
[TimeControl "40/5400+30:1800+30"]

{[%evp 9,100,-7,-5,-9,12,-6,0,-7,0,-7,0,-14,0,-32,-23,-32,-10,-30,-20,-20,-21,-34,-36,-31,-29,-35,10,-13,0,-43,-25,-26,-17,-27,0,-38,-37,-108,-118,-175,-141,-158,-154,-163,-168,-160,-156,-160,-162,-156,-141,-135,-134,-134,-135,-134,-135,-132,-131,-135,-136,-135,-129,-132,-132,-119,-99,-133,-133,-124,-43,-105,-103,-183,-131,-268,-234,-394,-410,-425,-417,-403,-379,-629,-627,-29973,-29975,-29976,-29976,-29975,-29976,-7304,-12357]} 1. d4 {[%emt 0:00:02]} Nf6 {[%emt 0:00:11]} 2. Bf4 {[%emt 0:00:11]} d5 {[%emt 0:00:50]} 3. e3 {[%emt 0:04:03]} e6 {[%emt 0:00:34]} 4. Nd2 {[%emt 0:00:53]} Bd6 {[%emt 0:01:50]} 5. Bg3 {[%emt 0:00:09]} O-O {[%emt 0:05:40]} 6. Bd3 {[%emt 0:01:13] D00: 1 d4 d5: Unusual lines.} c5 {[%emt 0:01:01]} 7. c3 {[%emt 0:00:13]} Qc7 $1 {[%emt 0:02:45][%mdl 4] is more profitable than 7...Nc6 at the moment.} 8. dxc5 {[%emt 0:14:34] The position is equal.} Qxc5 {[%emt 0:00:10]} 9. Ngf3 {[%emt 0:00:51]} Nbd7 {[%emt 0:01:00]} 10. c4 {[%emt 0:02:08]} dxc4 {[%emt 0:23:12]} 11. Nxc4 {[%emt 0:09:48]} Bxg3 {[%emt 0:03:39]} 12. hxg3 {[%emt 0:00:06] [#]} Rd8 $146 {[%emt 0:00:49]} ({Predecessor:} 12... Qb4+ 13. Qd2 Qxd2+ 14. Nfxd2 Nc5 15. Bc2 Rd8 16. O-O-O Bd7 17. e4 h6 18. Rh4 Bc6 {½-½ (44) Grigoryan,K (2532)-Zhou,J (2608) Dulles 2019}) 13. Rc1 {[%emt 0:18:51][%cal Og3g4]} Qe7 {[%emt 0:14:03]} 14. Qc2 {[%emt 0:20:12][%cal Rd3h7]} h6 {[%emt 0:03:36]} 15. Rh4 {[%emt 0:06:16]} b6 {[%emt 0:04:15]} 16. Nce5 {[%emt 0:10:58] aiming for Nc6.} Bb7 {[%emt 0:00:30]} 17. Nxd7 {[%emt 0:02:23]} Rxd7 {[%emt 0:02:08]} 18. Rc4 {[%emt 0:02:04]} (18. Ne5 {is more complex.} Rd5 19. Qc7 Re8 20. Ke2) 18... Bd5 {[%emt 0:15:09]} 19. Rc8+ {[%emt 0:01:42]} Rxc8 {[%emt 0:00:17]} 20. Qxc8+ {[%emt 0:00:02]} Rd8 {[%emt 0:00:08]} 21. Qc3 {[%emt 0:02:07]} Ne4 {[%emt 0:07:12]} 22. Bxe4 {[%emt 0:00:50]} (22. Qc7 $5 {[%cal Rc7e7]} Kf8 23. Bxe4 (23. Qxe7+ Kxe7 24. Rc7+ Rd7 $15) 23... Bxe4 24. a3 $11) 22... Bxe4 {[%emt 0:00:02]} 23. Kf1 {[%emt 0:00:48] [#]} (23. a3 $15) 23... Qb7 $1 $17 {[%emt 0:00:52]} 24. Qc7 {[%emt 0:01:30] [#]} (24. Ne1 $17) 24... Rd1+ $3 $19 {[%emt 0:01:44][%mdl 512]} 25. Ke2 {[%emt 0:00:01]} Rxc1 {[%emt 0:00:19]} 26. Qxc1 $17 {[%emt 0:00:05][%mdl 4096] Endgame KQB-KQN} Qa6+ {[%emt 0:00:11]} 27. Ke1 {[%emt 0:00:38]} Qxa2 {[%emt 0:01:06]} 28. Nd2 {[%emt 0:00:38]} Bd3 {[%emt 0:01:20]} 29. f3 {[%emt 0:00:13]} Qd5 {[%emt 0:02:02]} 30. Kf2 {[%emt 0:00:29]} Ba6 {[%emt 0:02:41] Black is more active.} 31. g4 {[%emt 0:00:45]} Qd3 {[%emt 0:01:40]} 32. Ne4 {[%emt 0:00:15]} Bb7 {[%emt 0:01:11]} 33. Ng3 {[%emt 0:00:31]} a5 {[%emt 0:01:16]} 34. Ne2 {[%emt 0:00:51]} Ba6 {[%emt 0:01:10]} 35. Nf4 {[%emt 0:00:40]} Qc4 {[%emt 0:00:16]} 36. Qd2 {[%emt 0:00:09]} Qc7 {[%emt 0:00:53] Against Qd8+} 37. Nh5 {[%emt 0:00:30]} f6 {[%emt 0:01:56]} 38. Nf4 {[%emt 0:00:14]} Bc8 {[%emt 0:00:28]} 39. Qd3 {[%emt 0:00:35]} e5 {[%emt 0:00:58]} (39... Bd7 $17 40. Kg1 a4) 40. Nd5 {[%emt 0:00:49]} (40. Qb3+ $15 Qf7 41. Nd5) 40... Qd6 {[%emt 0:00:33]} 41. Qg6 {[%emt 0:19:55] [#]} Bd7 $1 $19 {[%emt 0:03:14]} ({Not} 41... Qxd5 42. Qe8+ Kh7 43. Qxc8 $17) 42. e4 {[%emt 0:02:25] This costs White the game.} (42. Qd3 $17) 42... Bc6 {[%emt 0:00:54]} 43. g5 $2 {[%emt 0:02:13]} (43. Qf5 {was necessary.}) 43... hxg5 {[%emt 0:00:50]} 44. Kg3 {[%emt 0:04:00]} Bxd5 {[%emt 0:00:56]} 45. exd5 {[%emt 0:00:01] KQ-KQ} Kf8 {[%emt 0:00:56] Inhibits Qe8+. White must now prevent ...e4+.} 46. Qe4 $2 {[%emt 0:01:39]} (46. Qc2 e4+ 47. Kf2 exf3 48. Kxf3) 46... Qb4 {[%emt 0:00:28]} 47. Qxb4+ {[%emt 0:02:00]} axb4 {[%emt 0:00:02]} 48. Kf2 {[%emt 0:00:22]} Ke7 {[%emt 0:00:36]} 49. Ke3 {[%emt 0:00:08]} Kd6 {[%emt 0:00:07]} 50. Ke4 {[%emt 0:00:11]} g6 {[%emt 0:00:06] Weighted Error Value: White=0.41/Black=0.07 (flawless)} 0-1